fUSD/lending_fUSD_20260224
["ID","MTS","AMOUNT","RATE_DAILY","PERIOD"]
[406598654,1771966333472,-424.84285358,0.000101,2]
[406598655,1771966333577,-6132.4370438,0.000101,2]
[406598656,1771966333588,-394.44573083,0.000101,2]
[406598657,1771966333599,-471.87366345,0.000101,2]
[406598658,1771966333708,-1741.24,0.000101,2]
[406598659,1771966333720,-545.48,0.000101,2]
[406598660,1771966333731,-1779.11409296,0.000101,2]
[406598661,1771966333742,-670.59943,0.000101,2]
[406598662,1771966333753,-277.1987,0.000101,2]
[406598663,1771966333856,-330.235,0.000101,2]
[406598664,1771966333867,-41385.8502866,0.000101,2]
[406598665,1771966333877,-6851.39908693,0.000101,2]
[406598666,1771966333888,-649.48481584,0.000101,2]
[406598667,1771966333910,-1365.94,0.000101,2]
[406598668,1771966333922,-272.42,0.000101,2]
[406598669,1771966333933,-4344.85172635,0.000101,2]
[406598670,1771966333944,-443.4506406,0.000101,2]
[406598671,1771966334051,-3865.61854888,0.000101,2]
[406598672,1771966334062,-14109.93592049,0.000101,2]
[406598673,1771966334099,-1062.55520061,0.000101,2]
[406598674,1771966334110,-10450.9425226,0.000101,2]
[406598675,1771966336431,302.0,0.00045559,30]
[406598676,1771966336602,522.0,0.00045559,30]
[406598677,1771966341125,2071.51,0.00045559,30]
[406598678,1771966348891,5000.0,0.00045559,30]
[406598679,1771966391503,1648.40949976,0.00045559,30]
[406598680,1771966426787,-165.11,0.000302,30]
[406598681,1771966426836,-244.0,0.0003216,30]
[406598682,1771966426880,-151.0,0.00033,31]
[406598683,1771966426925,-165.11,0.000345,30]
[406598684,1771966426971,-271.228176,0.0003561,31]
[406598685,1771966427013,-271.228176,0.0003561,31]
[406598686,1771966427063,-271.228176,0.0003561,31]
[406598687,1771966427105,-271.228176,0.0003561,31]
[406598688,1771966427146,-737.01486,0.0003561,31]
[406598689,1771966427189,-737.01486,0.0003561,31]
[406598690,1771966427230,-737.01486,0.0003561,31]
[406598691,1771966427270,-737.01486,0.0003561,31]
[406598692,1771966427315,-213.0,0.00037687,30]
[406598693,1771966427353,-165.11,0.000383,30]
[406598694,1771966427395,-1715.92,0.000402,30]
[406598695,1771966427433,-200.416004,0.000402,120]
[406598696,1771966427471,-200.416004,0.000402,120]
[406598697,1771966427508,-200.416004,0.000402,120]
[406598698,1771966427544,-200.416004,0.000402,120]
[406598699,1771966427580,-1700.0,0.00040713,30]
[406598700,1771966427618,-900.0,0.00040719,30]
[406598701,1771966427657,-700.0,0.00040743,30]
[406598702,1771966427698,-500.0,0.00040748,30]
[406598703,1771966427745,-700.0,0.00040759,30]
[406598704,1771966427786,-500.0,0.0004077,30]
[406598705,1771966427827,-500.0,0.00040771,30]
[406598706,1771966427867,-500.0,0.0004078,30]
[406598707,1771966427908,-500.0,0.00040849,30]
[406598708,1771966427948,-900.0,0.0004085,30]
[406598709,1771966427986,-500.0,0.00040868,30]
[406598710,1771966428023,-1100.0,0.0004087,30]
[406598711,1771966428060,-810.0,0.00040875,30]
[406598712,1771966428096,-500.0,0.00040881,30]
[406598713,1771966428132,-1100.0,0.00040891,30]
[406598714,1771966428168,-500.0,0.00040895,30]
[406598715,1771966428203,-700.0,0.00040907,30]
[406598716,1771966428240,-1700.0,0.00040942,30]
[406598717,1771966428277,-840.44614434,0.00040959,30]
[406598718,1771966428313,-700.0,0.0004098,30]
[406598719,1771966428350,-900.0,0.00040982,30]
[406598720,1771966428395,-500.0,0.00041019,30]
[406598721,1771966428434,-500.0,0.00041021,30]
[406598722,1771966428472,-1700.0,0.00041031,30]
[406598723,1771966428510,-747.06830571,0.0004104,30]
[406598724,1771966428549,-392.76826941,0.00041049,30]
[406598725,1771966428586,-500.0,0.00041058,30]
[406598726,1771966428624,-500.0,0.00041076,30]
[406598727,1771966428661,-151.0,0.00041096,120]
[406598728,1771966428700,-205.355422,0.00041096,120]
[406598729,1771966428738,-151.0,0.00041096,120]
[406598730,1771966428776,-236.297784,0.00041096,120]
[406598731,1771966428811,-500.0,0.00041099,30]
[406598732,1771966428846,-1700.0,0.0004111,30]
[406598733,1771966428883,-1100.0,0.0004111,30]
[406598734,1771966428920,-500.0,0.00041141,30]
[406598735,1771966428960,-1100.0,0.00041208,30]
[406598736,1771966428997,-900.0,0.00041214,30]
[406598737,1771966429036,-500.0,0.00041216,30]
[406598738,1771966429076,-500.0,0.00041219,30]
[406598739,1771966429114,-500.0,0.00041223,30]
[406598740,1771966429150,-500.0,0.00041233,30]
[406598741,1771966429187,-500.0,0.00041243,30]
[406598742,1771966429227,-1100.0,0.00041246,30]
[406598743,1771966429267,-900.0,0.00041264,30]
[406598744,1771966429304,-700.0,0.00041267,30]
[406598745,1771966429343,-500.0,0.00041306,30]
[406598746,1771966429382,-500.0,0.00041327,30]
[406598747,1771966429421,-1100.0,0.0004133,30]
[406598748,1771966429461,-900.0,0.00041332,30]
[406598749,1771966429501,-500.0,0.00041365,30]
[406598750,1771966429538,-1700.0,0.00041369,30]
[406598751,1771966429576,-1700.0,0.0004141,30]
[406598752,1771966429614,-1100.0,0.00041427,30]
[406598753,1771966429651,-700.0,0.00041435,30]
[406598754,1771966429690,-1100.0,0.00041464,30]
[406598755,1771966429730,-700.0,0.00041468,30]
[406598756,1771966429770,-900.0,0.00041499,30]
[406598757,1771966429809,-1715.92,0.000415,30]
[406598758,1771966429846,-500.0,0.00041505,30]
[406598759,1771966429886,-900.0,0.00041523,30]
[406598760,1771966430087,-500.0,0.00041558,30]
[406598761,1771966430128,-1700.0,0.00041567,30]
[406598762,1771966430166,-500.0,0.00041607,30]
[406598763,1771966430203,-500.0,0.00041629,30]
[406598764,1771966430240,-1700.0,0.0004165,30]
[406598765,1771966430276,-1100.0,0.00041681,30]
[406598766,1771966430310,-1100.0,0.00041719,30]
[406598767,1771966430345,-500.0,0.00041732,30]
[406598768,1771966430380,-700.0,0.00041734,30]
[406598769,1771966430415,-514.45132365,0.00041737,30]
[406598770,1771966430452,-500.0,0.00041746,30]
[406598771,1771966430488,-500.0,0.00041758,30]
[406598772,1771966430527,-900.0,0.00041796,30]
[406598773,1771966430564,-203.29162849,0.00041808,30]
[406598774,1771966430604,-900.0,0.00041835,30]
[406598775,1771966430640,-1100.0,0.00041842,30]
[406598776,1771966430677,-700.0,0.00041868,30]
[406598777,1771966430714,-1700.0,0.00041869,30]
[406598778,1771966430751,-322.60581536,0.00041883,30]
[406598779,1771966430788,-500.0,0.00041891,30]
[406598780,1771966430825,-500.0,0.00041915,30]
[406598781,1771966430860,-500.0,0.00041915,30]
[406598782,1771966430899,-1700.0,0.0004194,30]
[406598783,1771966430938,-500.0,0.00041945,30]
[406598784,1771966430978,-500.0,0.00041951,30]
[406598785,1771966431018,-500.0,0.00041964,30]
[406598786,1771966431056,-900.0,0.00041987,30]
[406598787,1771966431093,-500.0,0.00042098,30]
[406598788,1771966431131,-500.0,0.00042104,30]
[406598789,1771966431167,-700.0,0.00042104,30]
[406598790,1771966431203,-500.0,0.00042108,30]
[406598791,1771966431239,-1100.0,0.00042128,30]
[406598792,1771966431277,-500.0,0.00042169,30]
[406598793,1771966431312,-500.0,0.00042186,30]
[406598794,1771966431346,-389.97769565,0.00042203,30]
[406598795,1771966431381,-700.0,0.00042221,30]
[406598796,1771966431415,-1100.0,0.00042247,30]
[406598797,1771966431450,-500.0,0.0004229,30]
[406598798,1771966431488,-1100.0,0.00042295,30]
[406598799,1771966431526,-1700.0,0.00042298,30]
[406598800,1771966431566,-1715.92,0.000423,30]
[406598801,1771966431606,-700.0,0.00042312,30]
[406598802,1771966431647,-700.0,0.00042339,30]
[406598803,1771966431689,-500.0,0.00042341,30]
[406598804,1771966431730,-1700.0,0.0004236,30]
[406598805,1771966431772,-900.0,0.00042363,30]
[406598806,1771966431813,-700.0,0.00042394,30]
[406598807,1771966431853,-173.54498154,0.0004241,30]
[406598808,1771966431895,-500.0,0.00042411,30]
[406598809,1771966431936,-1100.0,0.00042424,30]
[406598810,1771966431976,-700.0,0.00042433,30]
[406598811,1771966432014,-1100.0,0.00042438,30]
[406598812,1771966432053,-900.0,0.00042454,30]
[406598813,1771966432090,-500.0,0.00042463,30]
[406598814,1771966432127,-500.0,0.00042498,30]
[406598815,1771966432165,-700.0,0.00042513,30]
[406598816,1771966432203,-500.0,0.00042573,30]
[406598817,1771966432240,-500.0,0.00042583,30]
[406598818,1771966432278,-1100.0,0.00042626,30]
[406598819,1771966432314,-900.0,0.00042674,30]
[406598820,1771966432351,-900.0,0.00042682,30]
[406598821,1771966432388,-700.0,0.00042708,30]
[406598822,1771966432426,-285.87989989,0.00042756,30]
[406598823,1771966432462,-557.75876289,0.00042758,30]
[406598824,1771966432498,-1100.0,0.00042761,30]
[406598825,1771966432535,-1700.0,0.00042842,30]
[406598826,1771966432570,-1700.0,0.00042858,30]
[406598827,1771966432609,-725.57905668,0.00042872,30]
[406598828,1771966432647,-900.0,0.00042875,30]
[406598829,1771966432686,-1700.0,0.00042883,30]
[406598830,1771966432725,-1700.0,0.00042893,30]
[406598831,1771966432765,-500.0,0.00042923,30]
[406598832,1771966432806,-1700.0,0.00042933,30]
[406598833,1771966432848,-700.0,0.00042954,30]
[406598834,1771966432892,-900.0,0.00042972,30]
[406598835,1771966432936,-900.0,0.00042998,30]
[406598836,1771966432978,-900.0,0.0004301,30]
[406598837,1771966433025,-500.0,0.00043036,30]
[406598838,1771966433068,-900.0,0.00043053,30]
[406598839,1771966433109,-500.0,0.00043074,30]
[406598840,1771966433152,-500.0,0.00043085,30]
[406598841,1771966433194,-500.0,0.00043088,30]
[406598842,1771966433236,-1100.0,0.00043099,30]
[406598843,1771966433277,-1100.0,0.00043105,30]
[406598844,1771966433318,-1700.0,0.00043154,30]
[406598845,1771966433361,-484.09035768,0.00043167,30]
[406598846,1771966433402,-1100.0,0.00043214,30]
[406598847,1771966433441,-500.0,0.00043217,30]
[406598848,1771966433622,-500.0,0.00043254,30]
[406598849,1771966433666,-700.0,0.00043326,30]
[406598850,1771966433710,-1100.0,0.00043333,30]
[406598851,1771966433755,-900.0,0.00043344,30]
[406598852,1771966433804,-700.0,0.00043392,30]
[406598853,1771966433850,-500.0,0.00043396,68]
[406598854,1771966433896,-500.0,0.00043407,30]
[406598855,1771966433955,-700.0,0.00043427,30]
[406598856,1771966434008,-187.56923183,0.00043428,30]
[406598857,1771966434060,-1100.0,0.0004344,30]
[406598858,1771966434106,-1700.0,0.00043459,30]
[406598859,1771966434151,-500.0,0.00043497,30]
[406598860,1771966434196,-700.0,0.00043498,30]
[406598861,1771966434240,-500.0,0.00043507,30]
[406598862,1771966434285,-900.0,0.00043507,30]
[406598863,1771966434328,-1700.0,0.00043516,30]
[406598864,1771966434371,-500.0,0.00043527,30]
[406598865,1771966434413,-700.0,0.00043528,30]
[406598866,1771966434457,-500.0,0.00043557,30]
[406598867,1771966434499,-900.0,0.00043567,30]
[406598868,1771966434543,-898.80943196,0.0004357,30]
[406598869,1771966434591,-500.0,0.00043579,30]
[406598870,1771966434639,-1700.0,0.00043585,30]
[406598871,1771966434684,-500.0,0.00043597,30]
[406598872,1771966434729,-1700.0,0.00043615,30]
[406598873,1771966434774,-500.0,0.00043629,30]
[406598874,1771966434824,-1700.0,0.00043634,30]
[406598875,1771966434869,-1100.0,0.00043652,30]
[406598876,1771966434914,-1700.0,0.0004366,30]
[406598877,1771966434958,-1700.0,0.0004378,30]
[406598878,1771966435001,-900.0,0.00043781,30]
[406598879,1771966435044,-700.0,0.00043802,30]
[406598880,1771966435085,-900.0,0.00043804,30]
[406598881,1771966435126,-500.0,0.00043812,30]
[406598882,1771966435168,-500.0,0.00043821,30]
[406598883,1771966435209,-900.0,0.00043835,30]
[406598884,1771966435252,-1413.93433051,0.00043846,30]
[406598885,1771966435293,-1100.0,0.0004385,30]
[406598886,1771966435335,-1100.0,0.00043871,30]
[406598887,1771966435377,-500.0,0.00043899,30]
[406598888,1771966435417,-700.0,0.00043899,30]
[406598889,1771966435458,-500.0,0.00043907,30]
[406598890,1771966435499,-1700.0,0.0004391,30]
[406598891,1771966435541,-500.0,0.00043967,30]
[406598892,1771966435583,-168.82963489,0.00044004,30]
[406598893,1771966435623,-700.0,0.00044038,30]
[406598894,1771966435664,-1700.0,0.00044053,30]
[406598895,1771966435705,-500.0,0.00044055,30]
[406598896,1771966435746,-971.18053332,0.00044058,30]
[406598897,1771966435787,-1700.0,0.00044072,30]
[406598898,1771966435825,-500.0,0.00044086,30]
[406598899,1771966435864,-500.0,0.00044096,30]
[406598900,1771966435903,-500.0,0.00044097,30]
[406598901,1771966435945,-700.0,0.00044106,30]
[406598902,1771966435988,-223.4889152,0.00044237,30]
[406598903,1771966436032,-2149.16632552,0.00044244,30]
[406598904,1771966436075,-595.85860563,0.00044274,30]
[406598905,1771966436116,-704.37882443,0.00044282,30]
[406598906,1771966436158,-870.452302,0.00044286,30]
[406598907,1771966436199,-1161.00917083,0.00044308,30]
[406598908,1771966436243,-898.53555328,0.00044322,30]
[406598909,1771966436282,-150.0,0.00044648,120]
[406598910,1771966436324,-362.18,0.00045,120]
[406598911,1771966436362,-1715.92,0.00045,30]
[406598912,1771966436398,-500.0,0.00045132,68]
[406598913,1771966436435,-500.0,0.00045204,120]
[406598914,1771966436474,-250.0,0.00045204,120]
[406598915,1771966436511,-500.0,0.00045204,120]
[406598916,1771966436549,-250.0,0.00045204,120]
[406598917,1771966436587,-500.0,0.00045204,120]
[406598918,1771966436624,-250.0,0.00045204,120]
[406598919,1771966436661,-500.0,0.00045204,120]
[406598920,1771966436699,-250.0,0.00045204,120]
[406598921,1771966436736,-500.0,0.00045204,120]
[406598922,1771966436774,-620.0,0.00045204,120]
[406598923,1771966436812,-250.0,0.00045204,120]
[406598924,1771966436850,-500.0,0.00045204,120]
[406598925,1771966436890,-642.94,0.00045204,120]
[406598926,1771966436936,-250.0,0.00045204,120]
[406598927,1771966436979,-500.0,0.00045204,120]
[406598928,1771966437021,-666.72878,0.00045204,120]
[406598929,1771966437060,-500.0,0.00045204,120]
[406598930,1771966437099,-691.39774486,0.00045204,120]
[406598931,1771966437138,-250.0,0.00045204,120]
[406598932,1771966437177,-500.0,0.00045204,120]
[406598933,1771966437216,-716.97946142,0.00045204,120]
[406598934,1771966437254,-250.0,0.00045204,120]
[406598935,1771966437450,-743.50770149,0.00045204,120]
[406598936,1771966437492,-250.0,0.00045204,120]
[406598937,1771966437531,-500.0,0.00045204,120]
[406598938,1771966437568,-771.01748645,0.00045204,120]
[406598939,1771966437607,-250.0,0.00045204,120]
[406598940,1771966437645,-500.0,0.00045204,120]
[406598941,1771966437684,-799.54513345,0.00045204,120]
[406598942,1771966437724,-250.0,0.00045204,120]
[406598943,1771966437765,-500.0,0.00045204,120]
[406598944,1771966437804,-829.12830338,0.00045204,120]
[406598945,1771966437844,-250.0,0.00045204,120]
[406598946,1771966437883,-500.0,0.00045204,120]
[406598947,1771966437924,-859.80605061,0.00045204,120]
[406598948,1771966437965,-250.0,0.00045204,120]
[406598949,1771966438004,-500.0,0.00045204,120]
[406598950,1771966438045,-891.61887448,0.00045204,120]
[406598951,1771966438085,-263.39626015,0.00045204,120]
[406598952,1771966438125,-500.0,0.00045204,120]
[406598953,1771966438165,-264.59118713,0.00045204,120]
[406598954,1771966438204,-924.60877284,0.00045204,120]
[406598955,1771966438242,-151.0,0.00045204,120]
[406598956,1771966438280,-958.81929743,0.00045204,120]
[406598957,1771966438317,-500.0,0.00045204,120]
[406598958,1771966438353,-156.587,0.00045204,120]
[406598959,1771966438390,-994.29561144,0.00045204,120]
[406598960,1771966438427,-500.0,0.00045204,120]
[406598961,1771966438463,-162.380719,0.00045204,120]
[406598962,1771966438500,-303.62326822,0.00045204,120]
[406598963,1771966438536,-500.0,0.00045204,120]
[406598964,1771966438572,-168.3888056,0.00045204,120]
[406598965,1771966438610,-200.0,0.00045204,60]
[406598966,1771966438646,-500.0,0.00045204,120]
[406598967,1771966438683,-500.0,0.00045204,120]
[406598968,1771966438719,-207.4,0.00045204,60]
[406598969,1771966438756,-174.61919141,0.00045204,120]
[406598970,1771966438794,-200.0,0.00045204,120]
[406598971,1771966438832,-518.5,0.00045204,120]
[406598972,1771966438871,-500.0,0.00045204,120]
[406598973,1771966438911,-2000.0,0.00045204,120]
[406598974,1771966438949,-215.0738,0.00045204,60]
[406598975,1771966438987,-181.08010149,0.00045204,120]
[406598976,1771966439023,-203.62389456,0.00045204,120]
[406598977,1771966439060,-537.6845,0.00045204,120]
[406598978,1771966439096,-2000.0,0.00045204,120]
[406598979,1771966439133,-187.78006525,0.00045204,120]
[406598980,1771966439171,-223.0315306,0.00045204,60]
[406598981,1771966439208,-557.5788265,0.00045204,120]
[406598982,1771966439245,-2000.0,0.00045204,120]
[406598983,1771966439283,-194.72792766,0.00045204,120]
[406598984,1771966439319,-231.28369723,0.00045204,60]
[406598985,1771966439354,-578.20924308,0.00045204,120]
[406598986,1771966439395,-2000.0,0.00045204,120]
[406598987,1771966439432,-151.0,0.00045204,120]
[406598988,1771966439469,-201.93286099,0.00045204,120]
[406598989,1771966439505,-239.84119403,0.00045204,60]
[406598990,1771966439540,-599.60298507,0.00045204,120]
[406598991,1771966439576,-2000.0,0.00045204,120]
[406598992,1771966439611,-151.0,0.00045204,120]
[406598993,1771966439648,-209.40437684,0.00045204,120]
[406598994,1771966439686,-248.71531821,0.00045204,60]
[406598995,1771966439726,-621.78829552,0.00045204,120]
[406598996,1771966439767,-2000.0,0.00045204,120]
[406598997,1771966439808,-151.0,0.00045204,120]
[406598998,1771966439848,-461.00714032,0.00045204,120]
[406598999,1771966439889,-200.0,0.00045204,120]
[406599000,1771966439930,-217.15233878,0.00045204,120]
[406599001,1771966439969,-257.91778498,0.00045204,60]
[406599002,1771966440008,-654.50108401,0.00045204,120]
[406599003,1771966440049,-151.0,0.00045204,120]
[406599004,1771966440090,-2000.0,0.00045204,120]
[406599005,1771966440133,-225.18697532,0.00045204,120]
[406599006,1771966440178,-200.0,0.00045204,120]
[406599007,1771966440225,-267.46074303,0.00045204,60]
[406599008,1771966440271,-151.0,0.00045204,120]
[406599009,1771966440314,-2000.0,0.00045204,120]
[406599010,1771966440355,-233.51889341,0.00045204,120]
[406599011,1771966440399,-200.0,0.00045204,120]
[406599012,1771966440441,-277.35679052,0.00045204,60]
[406599013,1771966440487,-2000.0,0.00045204,120]
[406599014,1771966440530,-151.0,0.00045204,120]
[406599015,1771966440570,-287.61899177,0.00045204,60]
[406599016,1771966440610,-242.15909246,0.00045204,120]
[406599017,1771966440649,-200.0,0.00045204,120]
[406599018,1771966440688,-2000.0,0.00045204,120]
[406599019,1771966440729,-151.0,0.00045204,120]
[406599020,1771966440769,-298.26089446,0.00045204,60]
[406599021,1771966440807,-200.0,0.00045204,120]
[406599022,1771966440972,-251.11897888,0.00045204,120]
[406599023,1771966441013,-309.29654756,0.00045204,60]
[406599024,1771966441053,-2000.0,0.00045204,120]
[406599025,1771966441090,-260.4103811,0.00045204,120]
[406599026,1771966441127,-200.0,0.00045204,120]
[406599027,1771966441165,-151.0,0.00045204,120]
[406599028,1771966441204,-151.0,0.00045204,120]
[406599029,1771966441241,-320.74051982,0.00045204,60]
[406599030,1771966441280,-270.0455652,0.00045204,120]
[406599031,1771966441317,-2000.0,0.00045204,120]
[406599032,1771966441353,-200.0,0.00045204,120]
[406599033,1771966441388,-151.0,0.00045204,120]
[406599034,1771966441423,-151.0,0.00045204,120]
[406599035,1771966441461,-280.03725112,0.00045204,120]
[406599036,1771966441497,-332.60791905,0.00045204,60]
[406599037,1771966441533,-2000.0,0.00045204,120]
[406599038,1771966441569,-200.0,0.00045204,120]
[406599039,1771966441607,-151.0,0.00045204,120]
[406599040,1771966441649,-151.0,0.00045204,120]
[406599041,1771966441691,-290.39862941,0.00045204,120]
[406599042,1771966441736,-2105.56562994,0.00045204,120]
[406599043,1771966441779,-344.91441206,0.00045204,60]
[406599044,1771966441820,-200.0,0.00045204,120]
[406599045,1771966441860,-357.6762453,0.00045204,60]
[406599046,1771966441903,-151.0,0.00045204,120]
[406599047,1771966441948,-151.0,0.00045204,120]
[406599048,1771966441992,-301.14337869,0.00045204,120]
[406599049,1771966442040,-200.0,0.00045204,120]
[406599050,1771966442084,-151.0,0.00045204,120]
[406599051,1771966442128,-370.91026638,0.00045204,60]
[406599052,1771966442171,-151.0,0.00045204,120]
[406599053,1771966442214,-200.0,0.00045204,120]
[406599054,1771966442253,-482.21989134,0.00045204,60]
[406599055,1771966442292,-151.0,0.00045204,120]
[406599056,1771966442330,-151.0,0.00045204,120]
[406599057,1771966442370,-200.0,0.00045204,120]
[406599058,1771966442407,-151.0,0.00045204,120]
[406599059,1771966442444,-200.0,0.00045204,120]
[406599060,1771966442484,-151.0,0.00045204,120]
[406599061,1771966442521,-151.0,0.00045204,120]
[406599062,1771966442560,-151.0,0.00045204,120]
[406599063,1771966442597,-200.0,0.00045204,120]
[406599064,1771966442632,-200.0,0.00045204,120]
[406599065,1771966442669,-151.0,0.00045204,120]
[406599066,1771966442707,-151.0,0.00045204,120]
[406599067,1771966442744,-200.0,0.00045204,120]
[406599068,1771966442779,-151.0,0.00045204,120]
[406599069,1771966442818,-151.0,0.00045204,120]
[406599070,1771966442855,-200.0,0.00045204,120]
[406599071,1771966442892,-231.38180479,0.00045204,120]
[406599072,1771966442932,-500.0,0.00045204,120]
[406599073,1771966442974,-151.0,0.00045204,120]
[406599074,1771966443018,-200.0,0.00045204,120]
[406599075,1771966443066,-500.0,0.00045204,120]
[406599076,1771966443108,-222.88578796,0.00045204,120]
[406599077,1771966443153,-500.0,0.00045204,120]
[406599078,1771966443197,-151.0,0.00045204,120]
[406599079,1771966443241,-500.0,0.00045204,120]
[406599080,1771966443283,-151.0,0.00045204,120]
[406599081,1771966443326,-500.0,0.00045204,120]
[406599082,1771966443367,-151.0,0.00045204,120]
[406599083,1771966443408,-389.34222117,0.00045204,120]
[406599084,1771966443449,-500.0,0.00045204,120]
[406599085,1771966443493,-151.0,0.00045204,120]
[406599086,1771966443536,-500.0,0.00045204,120]
[406599087,1771966443575,-151.0,0.00045204,120]
[406599088,1771966443617,-500.0,0.00045204,120]
[406599089,1771966443658,-151.0,0.00045204,120]
[406599090,1771966443701,-151.0,0.00045204,120]
[406599091,1771966443745,-151.0,0.00045204,120]
[406599092,1771966443791,-500.0,0.00045204,120]
[406599093,1771966443834,-250.0,0.00045204,120]
[406599094,1771966443878,-151.0,0.00045204,120]
[406599095,1771966443923,-250.0,0.00045204,120]
[406599096,1771966443968,-151.0,0.00045204,120]
[406599097,1771966444014,-500.0,0.00045204,120]
[406599098,1771966444060,-500.0,0.00045204,120]
[406599099,1771966444106,-250.0,0.00045204,120]
[406599100,1771966444152,-151.0,0.00045204,120]
[406599101,1771966444200,-500.0,0.00045204,120]
[406599102,1771966444244,-240.3624701,0.00045204,120]
[406599103,1771966444289,-500.0,0.00045204,120]
[406599104,1771966444332,-151.0,0.00045204,120]
[406599105,1771966444377,-500.0,0.00045204,120]
[406599106,1771966444424,-500.0,0.00045204,120]
[406599107,1771966444471,-151.0,0.00045204,120]
[406599108,1771966444520,-500.0,0.00045204,120]
[406599109,1771966444723,-500.0,0.00045204,120]
[406599110,1771966444772,-151.0,0.00045204,120]
[406599111,1771966444819,-500.0,0.00045204,120]
[406599112,1771966444865,-500.0,0.00045204,120]
[406599113,1771966444912,-151.0,0.00045204,120]
[406599114,1771966444960,-500.0,0.00045204,120]
[406599115,1771966445008,-500.0,0.00045204,120]
[406599116,1771966445054,-151.0,0.00045204,120]
[406599117,1771966445098,-500.0,0.00045204,120]
[406599118,1771966445144,-500.0,0.00045204,120]
[406599119,1771966445189,-500.0,0.00045204,120]
[406599120,1771966445235,-151.0,0.00045204,120]
[406599121,1771966445279,-500.0,0.00045204,120]
[406599122,1771966445323,-500.0,0.00045204,120]
[406599123,1771966445367,-500.0,0.00045204,120]
[406599124,1771966445408,-151.0,0.00045204,120]
[406599125,1771966445449,-500.0,0.00045204,120]
[406599126,1771966445495,-500.0,0.00045204,120]
[406599127,1771966445538,-500.0,0.00045204,120]
[406599128,1771966445579,-151.0,0.00045204,120]
[406599129,1771966445620,-500.0,0.00045204,120]
[406599130,1771966445661,-500.0,0.00045204,120]
[406599131,1771966445702,-500.0,0.00045204,120]
[406599132,1771966445744,-151.0,0.00045204,120]
[406599133,1771966445790,-500.0,0.00045204,120]
[406599134,1771966445830,-500.0,0.00045204,120]
[406599135,1771966445869,-500.0,0.00045204,120]
[406599136,1771966445912,-500.0,0.00045204,120]
[406599137,1771966445953,-500.0,0.00045204,120]
[406599138,1771966445995,-242.40839495,0.00045204,120]
[406599139,1771966446038,-500.0,0.00045204,120]
[406599140,1771966446080,-500.0,0.00045204,120]
[406599141,1771966446120,-250.0,0.00045204,120]
[406599142,1771966446158,-500.0,0.00045204,120]
[406599143,1771966446199,-250.0,0.00045204,120]
[406599144,1771966446240,-500.0,0.00045204,120]
[406599145,1771966446279,-250.0,0.00045204,120]
[406599146,1771966446314,-500.0,0.00045204,120]
[406599147,1771966446349,-250.0,0.00045204,120]
[406599148,1771966446384,-500.0,0.00045204,120]
[406599149,1771966446420,-500.0,0.00045204,120]
[406599150,1771966446455,-520.0,0.00045204,120]
[406599151,1771966446495,-250.0,0.00045204,120]
[406599152,1771966446532,-500.0,0.00045204,120]
[406599153,1771966446567,-539.24,0.00045204,120]